[Event "*** Titled Tuesday Blitz"]
[Site "Chess.com"]
[Date "2019.07.02"]
[Round "2"]
[White "Last7Samurai"]
[Black "Padenie_Zvezd"]
[Result "1-0"]
[WhiteElo "2778"]
[BlackElo "2674"]
[TimeControl "180+2"]
[EndTime "13:24:15 PDT"]
[Termination "Last7Samurai won by resignation"]

1. d4 {[%clk 0:03:01.9]} 1... d5 {[%clk 0:02:58.8]} 2. Bf4 {[%clk 0:03:02.9]}
2... Nf6 {[%clk 0:02:55.7]} 3. e3 {[%clk 0:03:04.1]} 3... c5 {[%clk 0:02:56.9]}
4. c3 {[%clk 0:03:03.8]} 4... Nc6 {[%clk 0:02:57.4]} 5. Nd2 {[%clk 0:03:04]}
5... Qb6 {[%clk 0:02:58]} 6. Qb3 {[%clk 0:02:48.1]} 6... c4 {[%clk 0:02:58.6]}
7. Qc2 {[%clk 0:02:48.5]} 7... g6 {[%clk 0:02:38.5]} 8. e4 {[%clk 0:02:45.8]}
8... e5 {[%clk 0:02:37.9]} 9. dxe5 {[%clk 0:02:41.1]} 9... Ng4 {[%clk
0:02:38.3]} 10. O-O-O {[%clk 0:02:35.7]} 10... Qxf2 {[%clk 0:01:57.1]} 11. Bg3
{[%clk 0:02:25.4]} 11... Qe3 {[%clk 0:01:57.8]} 12. exd5 {[%clk 0:02:16.7]}
12... Bf5 {[%clk 0:01:41.6]} 13. Qa4 {[%clk 0:02:13.3]} 13... b5 {[%clk
0:00:57.7]} 14. Qxb5 {[%clk 0:02:06.7]} 14... Ba3 {[%clk 0:00:38.8]} 15. Qxc6+
{[%clk 0:01:11.8]} 15... Kf8 {[%clk 0:00:39.7]} 16. Ne2 {[%clk 0:01:00.8]} 16...
Rb8 {[%clk 0:00:28.2]} 17. Qd6+ {[%clk 0:00:38.2]} 17... Bxd6 {[%clk 0:00:28.5]}
18. exd6 {[%clk 0:00:40.1]} 18... Kg7 {[%clk 0:00:20.5]} 19. Nd4 {[%clk
0:00:33.2]} 19... Nf2 {[%clk 0:00:11.6]} 20. Nxf5+ {[%clk 0:00:24.3]} 20... gxf5
{[%clk 0:00:12]} 21. Bxf2 {[%clk 0:00:25.7]} 21... Qxf2 {[%clk 0:00:13.9]} 22.
Bxc4 {[%clk 0:00:27.2]} 22... Qb6 {[%clk 0:00:14.9]} 23. Bb3 {[%clk 0:00:27]}
23... Qxd6 {[%clk 0:00:15.7]} 24. Rhf1 {[%clk 0:00:27.9]} 24... f4 {[%clk
0:00:14]} 25. Nf3 {[%clk 0:00:24.9]} 25... a5 {[%clk 0:00:11.7]} 26. Nd4 {[%clk
0:00:26.3]} 26... Qf6 {[%clk 0:00:03.4]} 27. g3 {[%clk 0:00:25.8]} 27... Rhe8
{[%clk 0:00:04.8]} 28. Rxf4 {[%clk 0:00:26.6]} 28... Qb6 {[%clk 0:00:06.4]} 29.
d6 {[%clk 0:00:26.2]} 29... Rb7 {[%clk 0:00:07.9]} 30. d7 {[%clk 0:00:25.9]}
30... Rxd7 {[%clk 0:00:08.7]} 31. Nf5+ {[%clk 0:00:27]} 31... Kg6 {[%clk
0:00:07.4]} 32. Rxd7 {[%clk 0:00:24.7]} 32... Re1+ {[%clk 0:00:08.5]} 33. Kd2
{[%clk 0:00:25.1]} 33... Qg1 {[%clk 0:00:09.7]} 34. Bxf7+ {[%clk 0:00:22.6]}
34... Kf6 {[%clk 0:00:11.1]} 35. Nd4+ {[%clk 0:00:21.5]} 35... Kg5 {[%clk
0:00:11.2]} 36. Nf3+ {[%clk 0:00:22.4]} 36... Kh6 {[%clk 0:00:12.2]} 37. Nxg1
{[%clk 0:00:23.4]} 37... Rxg1 {[%clk 0:00:12.8]} 38. Bc4 {[%clk 0:00:24.1]} 1-0

[Event "*** Titled Tuesday Blitz"]
[Site "Chess.com"]
[Date "2019.07.02"]
[Round "2"]
[White "Witik"]
[Black "GMHess"]
[Result "0-1"]
[WhiteElo "2548"]
[BlackElo "2750"]
[TimeControl "180+2"]
[EndTime "13:24:20 PDT"]
[Termination "GMHess won by resignation"]

1. d4 {[%clk 0:03:01.9]} 1... g6 {[%clk 0:03:00.7]} 2. e4 {[%clk 0:03:01.9]}
2... Bg7 {[%clk 0:03:02.3]} 3. Nc3 {[%clk 0:03:02.9]} 3... d6 {[%clk 0:03:00.8]}
4. Be3 {[%clk 0:03:03.3]} 4... c6 {[%clk 0:03:01.9]} 5. Qd2 {[%clk 0:03:02.1]}
5... Nd7 {[%clk 0:03:02.2]} 6. f3 {[%clk 0:02:56.4]} 6... b5 {[%clk 0:02:57]} 7.
Nge2 {[%clk 0:02:52]} 7... Nb6 {[%clk 0:02:56]} 8. b3 {[%clk 0:02:45.1]} 8... a5
{[%clk 0:02:45.8]} 9. a4 {[%clk 0:02:32.9]} 9... b4 {[%clk 0:02:44.8]} 10. Nd1
{[%clk 0:02:32]} 10... c5 {[%clk 0:02:35.7]} 11. Nf2 {[%clk 0:02:14.7]} 11...
Ba6 {[%clk 0:02:17.2]} 12. Rd1 {[%clk 0:02:11.9]} 12... c4 {[%clk 0:02:17.7]}
13. g4 {[%clk 0:01:58.5]} 13... h5 {[%clk 0:02:11.4]} 14. gxh5 {[%clk
0:01:54.4]} 14... Rxh5 {[%clk 0:02:02.2]} 15. Ng3 {[%clk 0:01:44.3]} 15... Rh7
{[%clk 0:01:55.7]} 16. d5 {[%clk 0:01:05.3]} 16... Bc3 {[%clk 0:01:54.4]} 17. h4
{[%clk 0:00:24.2]} 17... Bxd2+ {[%clk 0:01:52.9]} 18. Rxd2 {[%clk 0:00:23.6]}
18... cxb3 {[%clk 0:01:54.1]} 19. cxb3 {[%clk 0:00:23.9]} 19... Bxf1 {[%clk
0:01:55.5]} 20. Kxf1 {[%clk 0:00:25.2]} 20... Rc8 {[%clk 0:01:54.9]} 21. Kg2
{[%clk 0:00:25.9]} 21... Rc3 {[%clk 0:01:55.2]} 22. Bd4 {[%clk 0:00:26.5]} 22...
Rxb3 {[%clk 0:01:56.1]} 23. Rc1 {[%clk 0:00:27.4]} 23... Nxa4 {[%clk 0:01:51]}
24. e5 {[%clk 0:00:25.8]} 24... dxe5 {[%clk 0:01:42.7]} 25. Bxe5 {[%clk
0:00:26.9]} 25... Nc3 {[%clk 0:01:41.5]} 26. d6 {[%clk 0:00:24.1]} 26... exd6
{[%clk 0:01:42.1]} 27. Rxd6 {[%clk 0:00:24.2]} 27... Qxh4 {[%clk 0:01:34.2]} 28.
Re1 {[%clk 0:00:22.3]} 28... Qh2+ {[%clk 0:01:08.5]} 29. Kf1 {[%clk 0:00:22.3]}
29... Rb1 {[%clk 0:01:02.7]} 30. Ng4 {[%clk 0:00:05.5]} 30... Qh1+ {[%clk
0:00:40.8]} 31. Nxh1 {[%clk 0:00:05.9]} 31... Rxh1+ {[%clk 0:00:42.7]} 32. Kg2
{[%clk 0:00:06.8]} 32... Rhxe1 {[%clk 0:00:30.6]} 33. Nf6+ {[%clk 0:00:07.9]}
33... Nxf6 {[%clk 0:00:31.4]} 34. Bxf6 {[%clk 0:00:09.8]} 34... Rbd1 {[%clk
0:00:23]} 35. Ra6 {[%clk 0:00:10.5]} 35... Rg1+ {[%clk 0:00:24.3]} 36. Kh3
{[%clk 0:00:11]} 36... Rd5 {[%clk 0:00:15.5]} 37. Kh2 {[%clk 0:00:10.4]} 37...
Ne2 {[%clk 0:00:13.9]} 38. Ra8+ {[%clk 0:00:09.4]} 38... Kd7 {[%clk 0:00:14.8]}
39. Rd8+ {[%clk 0:00:08.2]} 39... Ke6 {[%clk 0:00:16]} 0-1

[Event "*** Titled Tuesday Blitz"]
[Site "Chess.com"]
[Date "2019.07.02"]
[Round "2"]
[White "wonderfultime"]
[Black "BAS8892"]
[Result "1-0"]
[WhiteElo "2915"]
[BlackElo "2616"]
[TimeControl "180+2"]
[EndTime "13:24:21 PDT"]
[Termination "wonderfultime won by resignation"]

1. d4 {[%clk 0:03:01.9]} 1... Nf6 {[%clk 0:02:59.9]} 2. Nf3 {[%clk 0:03:02.5]}
2... e6 {[%clk 0:02:59.7]} 3. Bf4 {[%clk 0:03:03.3]} 3... c5 {[%clk 0:03:00.4]}
4. c3 {[%clk 0:03:04.5]} 4... d5 {[%clk 0:03:01.3]} 5. e3 {[%clk 0:03:05.7]}
5... Bd6 {[%clk 0:03:02.4]} 6. Bg3 {[%clk 0:03:06.7]} 6... Qc7 {[%clk
0:03:02.8]} 7. dxc5 {[%clk 0:03:05.6]} 7... Qxc5 {[%clk 0:03:03.5]} 8. Nbd2
{[%clk 0:03:07]} 8... Nbd7 {[%clk 0:02:39.8]} 9. Bd3 {[%clk 0:03:02.4]} 9... O-O
{[%clk 0:02:36.5]} 10. O-O {[%clk 0:02:30.5]} 10... Bxg3 {[%clk 0:02:36.5]} 11.
hxg3 {[%clk 0:02:29.8]} 11... e5 {[%clk 0:02:34.6]} 12. e4 {[%clk 0:02:23.9]}
12... dxe4 {[%clk 0:02:24.1]} 13. Nxe4 {[%clk 0:02:25.8]} 13... Nxe4 {[%clk
0:02:25.1]} 14. Bxe4 {[%clk 0:02:25.1]} 14... Nf6 {[%clk 0:02:24.6]} 15. Re1
{[%clk 0:02:13.3]} 15... Re8 {[%clk 0:02:21.2]} 16. Bc2 {[%clk 0:00:51.1]} 16...
Bg4 {[%clk 0:02:14.2]} 17. Qc1 {[%clk 0:00:52.4]} 17... Rad8 {[%clk 0:01:28.2]}
18. Qe3 {[%clk 0:00:52.3]} 18... Qxe3 {[%clk 0:01:28.1]} 19. Rxe3 {[%clk
0:00:54.2]} 19... Bxf3 {[%clk 0:01:29.2]} 20. gxf3 {[%clk 0:00:54]} 20... Rd2
{[%clk 0:01:30]} 21. Rc1 {[%clk 0:00:50]} 21... Kf8 {[%clk 0:01:20.6]} 22. Kf1
{[%clk 0:00:41.5]} 22... a6 {[%clk 0:00:49.9]} 23. Re2 {[%clk 0:00:38.5]} 23...
Rxe2 {[%clk 0:00:49.1]} 24. Kxe2 {[%clk 0:00:40.4]} 24... Rd8 {[%clk 0:00:46]}
25. a4 {[%clk 0:00:38.5]} 25... a5 {[%clk 0:00:46.4]} 26. Ra1 {[%clk 0:00:38.2]}
26... Ke7 {[%clk 0:00:45.9]} 27. Ra3 {[%clk 0:00:38.7]} 27... Rd6 {[%clk
0:00:41.7]} 28. Rb3 {[%clk 0:00:38.1]} 28... b6 {[%clk 0:00:43]} 29. Rb5 {[%clk
0:00:39.3]} 29... Nd7 {[%clk 0:00:43.6]} 30. b4 {[%clk 0:00:40.6]} 30... axb4
{[%clk 0:00:43.4]} 31. cxb4 {[%clk 0:00:42.5]} 31... h6 {[%clk 0:00:25.5]} 32.
a5 {[%clk 0:00:37.2]} 32... bxa5 {[%clk 0:00:26]} 33. bxa5 {[%clk 0:00:39.1]}
33... g6 {[%clk 0:00:14]} 34. Bd3 {[%clk 0:00:34.8]} 34... Rd4 {[%clk 0:00:11]}
35. Rb7 {[%clk 0:00:32.4]} 35... Kd6 {[%clk 0:00:08.2]} 36. a6 {[%clk
0:00:12.8]} 36... Ra4 {[%clk 0:00:08.1]} 37. Rxd7+ {[%clk 0:00:13.4]} 37... Kxd7
{[%clk 0:00:08.7]} 38. Bb5+ {[%clk 0:00:14.5]} 38... Kc7 {[%clk 0:00:10.6]} 39.
Bxa4 {[%clk 0:00:16.4]} 1-0

[Event "*** Titled Tuesday Blitz"]
[Site "Chess.com"]
[Date "2019.07.02"]
[Round "2"]
[White "pandamaster3000"]
[Black "albano87"]
[Result "0-1"]
[WhiteElo "2271"]
[BlackElo "2211"]
[TimeControl "180+2"]
[EndTime "13:24:24 PDT"]
[Termination "albano87 won by checkmate"]

1. e4 {[%clk 0:03:01.9]} 1... c5 {[%clk 0:02:56.2]} 2. Nf3 {[%clk 0:03:02.5]}
2... Nc6 {[%clk 0:02:53.7]} 3. Bb5 {[%clk 0:03:02.9]} 3... d6 {[%clk 0:02:52.7]}
4. Bxc6+ {[%clk 0:03:00]} 4... bxc6 {[%clk 0:02:53]} 5. e5 {[%clk 0:02:57.4]}
5... g6 {[%clk 0:02:50.3]} 6. O-O {[%clk 0:02:57.2]} 6... Bg7 {[%clk 0:02:49.7]}
7. Re1 {[%clk 0:02:51.6]} 7... d5 {[%clk 0:02:43.9]} 8. d3 {[%clk 0:02:40.4]}
8... Bg4 {[%clk 0:02:35.1]} 9. h3 {[%clk 0:02:36]} 9... Bxf3 {[%clk 0:02:31.7]}
10. Qxf3 {[%clk 0:02:37.9]} 10... e6 {[%clk 0:02:32.8]} 11. c4 {[%clk
0:02:34.7]} 11... Ne7 {[%clk 0:02:30.6]} 12. Nc3 {[%clk 0:02:35.6]} 12... O-O
{[%clk 0:02:29.7]} 13. Na4 {[%clk 0:02:34.5]} 13... Qa5 {[%clk 0:02:27.9]} 14.
Bg5 {[%clk 0:02:27.2]} 14... f6 {[%clk 0:02:25.4]} 15. exf6 {[%clk 0:02:11]}
15... Qxa4 {[%clk 0:02:25.1]} 16. Rxe6 {[%clk 0:01:46.1]} 16... Nf5 {[%clk
0:02:25.7]} 17. fxg7 {[%clk 0:01:41.4]} 17... Nxg7 {[%clk 0:02:26.1]} 18. Qe2
{[%clk 0:01:41.4]} 18... Nxe6 {[%clk 0:02:23.5]} 19. Qxe6+ {[%clk 0:01:43.3]}
19... Rf7 {[%clk 0:02:24.7]} 20. b3 {[%clk 0:01:38.9]} 20... Qb4 {[%clk
0:02:19.6]} 21. Qxc6 {[%clk 0:01:33.5]} 21... Raf8 {[%clk 0:02:12.4]} 22. Qxd5
{[%clk 0:01:26.1]} 22... Qb7 {[%clk 0:02:12.8]} 23. Qxb7 {[%clk 0:01:17.4]}
23... Rxb7 {[%clk 0:02:14.7]} 24. Re1 {[%clk 0:01:18.9]} 24... Kf7 {[%clk
0:02:14.5]} 25. Re5 {[%clk 0:01:15.9]} 25... Rc8 {[%clk 0:02:15.2]} 26. Bd2
{[%clk 0:01:02.6]} 26... Re7 {[%clk 0:02:15.2]} 27. Rd5 {[%clk 0:00:40.7]} 27...
Re2 {[%clk 0:02:13.3]} 28. Be3 {[%clk 0:00:41.8]} 28... Rxa2 {[%clk 0:02:12.8]}
29. Bxc5 {[%clk 0:00:38.8]} 29... Ra5 {[%clk 0:02:07.7]} 30. b4 {[%clk
0:00:38.6]} 30... Ra1+ {[%clk 0:02:06.5]} 31. Kh2 {[%clk 0:00:39.2]} 31... a5
{[%clk 0:02:00.3]} 32. b5 {[%clk 0:00:37.3]} 32... a4 {[%clk 0:02:00.8]} 33. b6
{[%clk 0:00:38.6]} 33... a3 {[%clk 0:01:59.6]} 34. b7 {[%clk 0:00:39.5]} 34...
Rb8 {[%clk 0:01:59.7]} 35. Rd7+ {[%clk 0:00:38]} 35... Ke6 {[%clk 0:01:59.1]}
36. Re7+ {[%clk 0:00:35.9]} 36... Kf6 {[%clk 0:01:58.9]} 37. Rxh7 {[%clk
0:00:35.9]} 37... Rb1 {[%clk 0:01:55.9]} 38. Bd4+ {[%clk 0:00:21.5]} 38... Ke6
{[%clk 0:01:51.6]} 39. Rg7 {[%clk 0:00:21.6]} 39... R8xb7 {[%clk 0:01:48.4]} 40.
Rxg6+ {[%clk 0:00:22.5]} 40... Kf5 {[%clk 0:01:47.8]} 41. Ra6 {[%clk 0:00:20]}
41... R7b3 {[%clk 0:01:44.8]} 42. g4+ {[%clk 0:00:18.1]} 42... Kg5 {[%clk
0:01:34.9]} 43. Bf6+ {[%clk 0:00:14.9]} 43... Kf4 {[%clk 0:01:34.1]} 44. Bd4
{[%clk 0:00:10.9]} 44... Rxd3 {[%clk 0:01:31.8]} 45. Be3+ {[%clk 0:00:12.4]}
45... Kf3 {[%clk 0:01:30.6]} 46. c5 {[%clk 0:00:10]} 46... Rdd1 {[%clk
0:01:30.2]} 47. Rf6+ {[%clk 0:00:09.5]} 47... Ke2 {[%clk 0:01:30.9]} 48. c6
{[%clk 0:00:07.1]} 48... a2 {[%clk 0:01:31.8]} 49. c7 {[%clk 0:00:08.1]} 49...
a1=Q {[%clk 0:01:24.5]} 50. c8=Q {[%clk 0:00:08.5]} 50... Qxf6 {[%clk
0:01:23.6]} 51. Kg3 {[%clk 0:00:03.5]} 51... Rg1+ {[%clk 0:01:21.1]} 52. Kh2
{[%clk 0:00:04.3]} 52... Rh1+ {[%clk 0:01:21.7]} 53. Kg3 {[%clk 0:00:05]} 53...
Rbg1# {[%clk 0:01:23.6]} 0-1

[Event "*** Titled Tuesday Blitz"]
[Site "Chess.com"]
[Date "2019.07.02"]
[Round "2"]
[White "Doraemon7"]
[Black "StephenDedalus83"]
[Result "0-1"]
[WhiteElo "2578"]
[BlackElo "2812"]
[TimeControl "180+2"]
[EndTime "13:24:26 PDT"]
[Termination "StephenDedalus83 won by resignation"]

1. Nf3 {[%clk 0:03:01.9]} 1... c5 {[%clk 0:03:00.1]} 2. c4 {[%clk 0:02:57]} 2...
Nc6 {[%clk 0:03:00.5]} 3. Nc3 {[%clk 0:02:57.3]} 3... e5 {[%clk 0:03:01]} 4. e3
{[%clk 0:02:54.9]} 4... Nf6 {[%clk 0:02:58.9]} 5. d4 {[%clk 0:02:52.7]} 5...
cxd4 {[%clk 0:02:55.5]} 6. exd4 {[%clk 0:02:54.6]} 6... e4 {[%clk 0:02:56.5]} 7.
Ne5 {[%clk 0:02:56]} 7... Bb4 {[%clk 0:02:46.5]} 8. Be2 {[%clk 0:02:52.6]} 8...
O-O {[%clk 0:02:37.9]} 9. O-O {[%clk 0:02:46.7]} 9... Re8 {[%clk 0:02:38.8]} 10.
Nxc6 {[%clk 0:02:39.7]} 10... dxc6 {[%clk 0:02:36.6]} 11. Be3 {[%clk 0:02:24.2]}
11... Bf5 {[%clk 0:02:28.8]} 12. Qb3 {[%clk 0:02:23.3]} 12... Qe7 {[%clk
0:02:04.2]} 13. Bg5 {[%clk 0:02:10.8]} 13... Bd6 {[%clk 0:02:00.4]} 14. Rae1
{[%clk 0:01:51.8]} 14... h6 {[%clk 0:01:46.7]} 15. Be3 {[%clk 0:01:48.3]} 15...
Ng4 {[%clk 0:01:33.2]} 16. Bxg4 {[%clk 0:01:44.6]} 16... Bxg4 {[%clk 0:01:34.3]}
17. c5 {[%clk 0:01:34.7]} 17... Bc7 {[%clk 0:01:33]} 18. d5 {[%clk 0:01:35.7]}
18... Bxh2+ {[%clk 0:00:45.1]} 19. Kxh2 {[%clk 0:01:33.9]} 19... Qh4+ {[%clk
0:00:46.5]} 20. Kg1 {[%clk 0:01:35]} 20... Bf3 {[%clk 0:00:46]} 21. Ne2 {[%clk
0:01:06]} 21... Re5 {[%clk 0:00:46.5]} 22. Ng3 {[%clk 0:00:57.1]} 22... Rxd5
{[%clk 0:00:24.1]} 23. gxf3 {[%clk 0:00:34]} 23... exf3 {[%clk 0:00:24.2]} 24.
Bc1 {[%clk 0:00:35.5]} 24... Rf5 {[%clk 0:00:19.5]} 25. Re3 {[%clk 0:00:29]}
25... Qg4 {[%clk 0:00:19.1]} 26. Rd1 {[%clk 0:00:20.1]} 26... h5 {[%clk
0:00:19.4]} 27. Rdd3 {[%clk 0:00:11.8]} 27... h4 {[%clk 0:00:20.3]} 28. Rxf3
{[%clk 0:00:13.3]} 28... hxg3 {[%clk 0:00:21.3]} 29. Rxg3 {[%clk 0:00:15.2]}
29... Qe4 {[%clk 0:00:22.3]} 30. Rde3 {[%clk 0:00:13.4]} 30... Qd4 {[%clk
0:00:23.3]} 31. Qc3 {[%clk 0:00:14.8]} 31... Qd1+ {[%clk 0:00:23.8]} 32. Kg2
{[%clk 0:00:15.9]} 32... Qd5+ {[%clk 0:00:24.1]} 33. Kg1 {[%clk 0:00:16.1]}
33... g6 {[%clk 0:00:25]} 34. Qe1 {[%clk 0:00:14.3]} 34... Rh5 {[%clk
0:00:24.7]} 35. Re8+ {[%clk 0:00:14.9]} 35... Kg7 {[%clk 0:00:24]} 36. Rg2
{[%clk 0:00:10.5]} 36... Rxe8 {[%clk 0:00:24.4]} 37. Be3 {[%clk 0:00:12.1]}
37... Re4 {[%clk 0:00:22.8]} 38. Qc3+ {[%clk 0:00:13.4]} 38... Kh7 {[%clk
0:00:23.3]} 39. Qe1 {[%clk 0:00:11.5]} 39... Reh4 {[%clk 0:00:23.9]} 0-1

[Event "*** Titled Tuesday Blitz"]
[Site "Chess.com"]
[Date "2019.07.02"]
[Round "2"]
[White "Palacios-LLera"]
[Black "dolynachess"]
[Result "0-1"]
[WhiteElo "2412"]
[BlackElo "2456"]
[TimeControl "180+2"]
[EndTime "13:24:27 PDT"]
[Termination "dolynachess won by resignation"]

1. d4 {[%clk 0:03:01.9]} 1... Nf6 {[%clk 0:03:00.5]} 2. Nf3 {[%clk 0:03:03]}
2... g6 {[%clk 0:03:00.9]} 3. c3 {[%clk 0:03:04.3]} 3... c5 {[%clk 0:03:02.3]}
4. dxc5 {[%clk 0:03:04.3]} 4... e6 {[%clk 0:02:54.6]} 5. b4 {[%clk 0:03:03.5]}
5... a5 {[%clk 0:02:55.1]} 6. Bb2 {[%clk 0:03:03.8]} 6... b6 {[%clk 0:02:49.3]}
7. cxb6 {[%clk 0:02:43.5]} 7... axb4 {[%clk 0:02:50.1]} 8. cxb4 {[%clk 0:02:44]}
8... Bxb4+ {[%clk 0:02:50.5]} 9. Nbd2 {[%clk 0:02:45.3]} 9... O-O {[%clk
0:02:26]} 10. Qb3 {[%clk 0:02:37.6]} 10... Na6 {[%clk 0:02:22.8]} 11. a3 {[%clk
0:02:35.8]} 11... Bxd2+ {[%clk 0:02:01.3]} 12. Nxd2 {[%clk 0:02:36.5]} 12... Bb7
{[%clk 0:01:56.8]} 13. Qc3 {[%clk 0:02:33.5]} 13... Kg7 {[%clk 0:01:56.7]} 14.
h4 {[%clk 0:02:19.4]} 14... Rc8 {[%clk 0:01:55.4]} 15. Qd4 {[%clk 0:02:18.3]}
15... d6 {[%clk 0:01:54.8]} 16. f4 {[%clk 0:01:59.6]} 16... h5 {[%clk
0:01:32.3]} 17. e3 {[%clk 0:01:30.7]} 17... Re8 {[%clk 0:01:25.3]} 18. Bb5
{[%clk 0:01:28.3]} 18... e5 {[%clk 0:01:19.1]} 19. fxe5 {[%clk 0:01:20.1]} 19...
dxe5 {[%clk 0:01:21]} 20. Qxd8 {[%clk 0:01:20.7]} 20... Rexd8 {[%clk 0:01:22.9]}
21. Bxe5 {[%clk 0:01:19.8]} 21... Rd5 {[%clk 0:01:09.9]} 22. Bxf6+ {[%clk
0:01:15.6]} 22... Kxf6 {[%clk 0:01:11.8]} 23. O-O+ {[%clk 0:01:16.5]} 23... Ke7
{[%clk 0:01:06.5]} 24. Bxa6 {[%clk 0:01:11]} 24... Bxa6 {[%clk 0:01:08.4]} 25.
Rf2 {[%clk 0:01:12.1]} 25... Rb5 {[%clk 0:01:03.4]} 26. Ne4 {[%clk 0:00:46.8]}
26... Rxb6 {[%clk 0:01:03.3]} 27. Ng5 {[%clk 0:00:42.8]} 27... f6 {[%clk
0:01:03.5]} 28. Ne4 {[%clk 0:00:40.9]} 28... Rc4 {[%clk 0:01:02.6]} 29. Rf4
{[%clk 0:00:38.2]} 29... Rb2 {[%clk 0:00:43.1]} 30. Rd1 {[%clk 0:00:16.6]} 30...
Bb7 {[%clk 0:00:31.3]} 31. Nxf6 {[%clk 0:00:15]} 31... Rxg2+ {[%clk 0:00:23.5]}
32. Kf1 {[%clk 0:00:16.1]} 32... Rxf4+ {[%clk 0:00:22]} 33. exf4 {[%clk
0:00:16.3]} 33... Kxf6 {[%clk 0:00:23.2]} 34. Rd6+ {[%clk 0:00:16.2]} 34... Ke7
{[%clk 0:00:22.9]} 35. Rb6 {[%clk 0:00:16.8]} 35... Be4 {[%clk 0:00:19.7]} 36.
a4 {[%clk 0:00:17.4]} 36... Ra2 {[%clk 0:00:19.9]} 37. Rb4 {[%clk 0:00:16.2]}
37... Bd5 {[%clk 0:00:18]} 38. Rb6 {[%clk 0:00:15.9]} 38... Be6 {[%clk
0:00:17.8]} 39. Rb4 {[%clk 0:00:16]} 39... Kf6 {[%clk 0:00:18.8]} 40. Kg1 {[%clk
0:00:15]} 40... Kf5 {[%clk 0:00:19.6]} 41. Rb6 {[%clk 0:00:15.2]} 41... Bc4
{[%clk 0:00:18.5]} 42. Rb4 {[%clk 0:00:15]} 42... Bd3 {[%clk 0:00:19.1]} 43. Rd4
{[%clk 0:00:15.3]} 43... Be4 {[%clk 0:00:20]} 0-1

[Event "*** Titled Tuesday Blitz"]
[Site "Chess.com"]
[Date "2019.07.02"]
[Round "2"]
[White "MikeSailer"]
[Black "ahkashefi2800"]
[Result "0-1"]
[WhiteElo "2061"]
[BlackElo "2056"]
[TimeControl "180+2"]
[EndTime "13:24:29 PDT"]
[Termination "ahkashefi2800 won by resignation"]

1. b4 {[%clk 0:03:01.8]} 1... d5 {[%clk 0:02:57.6]} 2. Nf3 {[%clk 0:03:01.3]}
2... c6 {[%clk 0:02:24.4]} 3. e3 {[%clk 0:02:57.5]} 3... Nf6 {[%clk 0:02:14.2]}
4. c4 {[%clk 0:02:51.9]} 4... Bf5 {[%clk 0:02:10.4]} 5. Bb2 {[%clk 0:02:50.7]}
5... e6 {[%clk 0:02:09.8]} 6. b5 {[%clk 0:02:49.9]} 6... Bd6 {[%clk 0:02:04.3]}
7. a4 {[%clk 0:02:46.7]} 7... O-O {[%clk 0:02:04.8]} 8. Be2 {[%clk 0:02:47.4]}
8... Qe7 {[%clk 0:02:03]} 9. d4 {[%clk 0:02:46.6]} 9... Nbd7 {[%clk 0:02:02.7]}
10. O-O {[%clk 0:02:45.6]} 10... Ne4 {[%clk 0:02:02.8]} 11. Nbd2 {[%clk
0:02:42.7]} 11... Bg6 {[%clk 0:02:02.7]} 12. Nxe4 {[%clk 0:02:37.9]} 12... Bxe4
{[%clk 0:02:04.6]} 13. a5 {[%clk 0:02:35.4]} 13... a6 {[%clk 0:01:49.8]} 14.
bxc6 {[%clk 0:02:33.9]} 14... bxc6 {[%clk 0:01:50.1]} 15. cxd5 {[%clk
0:02:32.6]} 15... cxd5 {[%clk 0:01:52]} 16. Ne5 {[%clk 0:02:29.5]} 16... Nxe5
{[%clk 0:01:51.9]} 17. dxe5 {[%clk 0:02:30.4]} 17... Bb4 {[%clk 0:01:53.3]} 18.
Bd4 {[%clk 0:02:18.4]} 18... Rfc8 {[%clk 0:01:47.8]} 19. Bd3 {[%clk 0:02:10.9]}
19... Bg6 {[%clk 0:01:40.8]} 20. Bxg6 {[%clk 0:02:10.9]} 20... hxg6 {[%clk
0:01:41.5]} 21. Qd3 {[%clk 0:02:06.5]} 21... Rc4 {[%clk 0:01:35.7]} 22. Bb6
{[%clk 0:01:51.8]} 22... Rac8 {[%clk 0:01:34.8]} 23. h3 {[%clk 0:01:37.7]} 23...
Bc3 {[%clk 0:01:22]} 24. Rac1 {[%clk 0:01:19.3]} 24... Bxe5 {[%clk 0:01:20.1]}
25. Rxc4 {[%clk 0:01:14.4]} 25... Rxc4 {[%clk 0:01:22]} 26. f4 {[%clk
0:01:02.9]} 26... Bc7 {[%clk 0:01:21.6]} 27. Rb1 {[%clk 0:00:57.5]} 27... Bd6
{[%clk 0:01:02.4]} 28. Bd4 {[%clk 0:00:33.8]} 28... Bc5 {[%clk 0:00:59.7]} 29.
Rb8+ {[%clk 0:00:29.1]} 29... Kh7 {[%clk 0:00:59.8]} 30. Bxc5 {[%clk 0:00:20]}
30... Qxc5 {[%clk 0:00:54.3]} 31. Kh2 {[%clk 0:00:21.3]} 31... Qc7 {[%clk
0:00:40.8]} 32. Rb6 {[%clk 0:00:16.4]} 32... d4 {[%clk 0:00:29.3]} 33. Rb1
{[%clk 0:00:03.7]} 33... dxe3 {[%clk 0:00:26.6]} 34. Qxe3 {[%clk 0:00:05.2]}
34... Rxf4 {[%clk 0:00:22.1]} 35. Qxf4 {[%clk 0:00:06.7]} 35... Qxf4+ {[%clk
0:00:22.8]} 0-1